bitfinex-derivatives/quotes_BTCF0:USTF0_20251128
["timestamp","ask_amount","ask_price","bid_price","bid_amount"]
[1764318983103,0.46684,91317.0,91316.0,0.00316425]
[1764318983415,0.0357936,91303.0,91302.0,0.3608]
[1764318983616,0.4757936,91303.0,91302.0,0.3608]
[1764318984510,0.50533309,91303.0,91302.0,0.3608]
[1764318984711,0.50533309,91303.0,91302.0,0.46035]
[1764318984918,0.30533309,91303.0,91302.0,0.46035]
[1764318985413,0.30633309,91303.0,91302.0,0.46635]
[1764318985613,0.29537949,91303.0,91302.0,0.46635]
[1764318987213,0.29543609,91303.0,91302.0,0.46635]
[1764318989417,0.29543609,91303.0,91302.0,0.3668]
[1764318989622,0.65623609,91303.0,91302.0,0.006]
[1764318991313,0.0357943,91297.0,91296.0,0.11059]
[1764318991514,0.56425573,91297.0,91296.0,0.11059]
[1764318991714,0.59385182,91297.0,91296.0,0.11059]
[1764318992022,0.59385182,91297.0,91296.0,0.12937494]
[1764318992325,0.51639039,91297.0,91296.0,0.13537494]
[1764318995314,0.50543609,91297.0,91296.0,0.13537494]
[1764319000221,0.58396136,91297.0,91296.0,0.13537494]
[1764319001125,0.50543609,91297.0,91296.0,0.13537494]
[1764319002122,0.58406247,91297.0,91296.0,0.13537494]
[1764319002322,0.50543609,91297.0,91296.0,0.13537494]
[1764319004424,0.56109609,91297.0,91296.0,0.13537494]
[1764319006026,0.11109609,91297.0,91296.0,0.13537494]
[1764319010535,0.1106259,91297.0,91296.0,0.13537494]
[1764319010941,0.1106259,91297.0,91296.0,0.15520494]
[1764319014127,0.0301259,91297.0,91296.0,0.15520494]
[1764319014631,0.0703759,91297.0,91296.0,0.15520494]
[1764319014843,0.1106259,91297.0,91296.0,0.15520494]
[1764319024343,0.0301259,91297.0,91296.0,0.15520494]
[1764319025242,0.0535859,91297.0,91296.0,0.16615934]
[1764319025841,0.0301259,91297.0,91296.0,0.16615934]
[1764319026244,0.0535859,91297.0,91296.0,0.16615934]
[1764319026444,0.0301259,91297.0,91296.0,0.16615934]
[1764319026843,0.0770459,91297.0,91296.0,0.15520494]
[1764319028033,0.0301259,91297.0,91296.0,0.15520494]
[1764319028278,0.05375327,91312.0,91311.0,0.10922]
[1764319028444,0.00016327,91312.0,91311.0,0.1201726]
[1764319028642,0.0109497,91335.0,91311.0,0.1201726]
[1764319028643,0.05386375,91326.0,91325.0,0.10922]
[1764319028946,0.40027375,91326.0,91325.0,0.10922]
[1764319029735,0.00027375,91326.0,91325.0,0.10922]
[1764319030451,0.10745375,91326.0,91325.0,0.10922]
[1764319030948,0.54745375,91326.0,91325.0,0.10922]
[1764319031341,0.27845375,91326.0,91325.0,0.10922]
[1764319031541,0.28745375,91326.0,91325.0,0.11122]
[1764319031837,0.18027375,91326.0,91325.0,0.11122]
[1764319032041,0.50345375,91326.0,91325.0,0.11022]
[1764319032347,0.50445375,91326.0,91325.0,0.11022]
[1764319032648,0.00727375,91326.0,91325.0,0.11022]
[1764319033451,0.50445375,91326.0,91325.0,0.11022]
[1764319034942,0.50445375,91326.0,91325.0,0.12790468]
[1764319038953,0.52960375,91326.0,91325.0,0.01868468]
[1764319040252,0.55813101,91326.0,91325.0,0.01868468]
[1764319041150,0.53298101,91326.0,91325.0,0.01868468]
[1764319041950,0.55813101,91326.0,91325.0,0.01868468]
[1764319042253,0.1081719,91317.0,91316.0,0.00016425]
[1764319042444,0.69933916,91317.0,91316.0,0.00016425]
[1764319043346,0.0595636,91303.0,91302.0,0.4937]
[1764319043652,0.4695636,91303.0,91302.0,0.4937]
[1764319043847,0.5181736,91303.0,91302.0,0.4937]
[1764319045451,0.5211736,91303.0,91302.0,0.4947]
[1764319045754,0.5211736,91303.0,91302.0,0.51224103]
[1764319046849,0.5211736,91303.0,91302.0,0.48059103]
[1764319047253,0.72240261,91303.0,91302.0,0.01854103]
[1764319054060,0.72239884,91303.0,91302.0,0.01854103]
[1764319057063,0.54971884,91303.0,91302.0,0.14851103]
[1764319057255,0.6938536,91303.0,91302.0,0.14851103]
[1764319061360,0.72238883,91303.0,91302.0,0.11639103]
[1764319063070,0.72238883,91303.0,91302.0,0.06511103]
[1764319063660,0.0927347,91294.0,91293.0,0.00016425]
[1764319063867,0.69394993,91294.0,91293.0,0.01582069]
[1764319064861,0.69394993,91294.0,91293.0,0.00615651]
[1764319065168,0.0927368,91276.0,91275.0,0.49077]
[1764319065465,0.6654168,91276.0,91275.0,0.49077]
[1764319066362,0.69400803,91276.0,91275.0,0.49177]
[1764319066968,0.69500803,91276.0,91275.0,0.49677]
[1764319067665,0.70000803,91276.0,91275.0,0.49177]
[1764319067856,0.70000803,91276.0,91275.0,0.50776953]
[1764319068170,0.30000803,91276.0,91275.0,0.50776953]
[1764319068372,0.34000803,91276.0,91275.0,0.50776953]
[1764319068958,0.33400803,91276.0,91275.0,0.50676953]
[1764319069162,0.34000803,91276.0,91275.0,0.50776953]
[1764319069362,0.67000803,91276.0,91275.0,0.50776953]
[1764319069561,0.67000803,91276.0,91275.0,0.50676953]
[1764319069562,0.66402209,91276.0,91275.0,0.50676953]
[1764319069762,0.39902209,91276.0,91275.0,0.50776953]
[1764319070163,0.66902209,91276.0,91275.0,0.50776953]
[1764319070669,0.67002209,91276.0,91275.0,0.50776953]
[1764319071269,0.49734209,91276.0,91275.0,0.50776953]
[1764319071477,0.67002209,91276.0,91275.0,0.50776953]
[1764319072172,0.66402209,91276.0,91275.0,0.50676953]
[1764319072473,0.6404168,91276.0,91275.0,0.50776953]
[1764319072669,0.6354168,91276.0,91275.0,0.50676953]
[1764319072869,0.6404168,91276.0,91275.0,0.50776953]
[1764319076070,0.4677368,91276.0,91275.0,0.50776953]
[1764319076269,0.6404168,91276.0,91275.0,0.50776953]
[1764319076466,0.005,91276.0,91275.0,0.50776953]
[1764319081775,0.04589,91276.0,91275.0,0.50776953]
[1764319081971,0.52564,91276.0,91275.0,0.50776953]
[1764319086277,0.55429398,91276.0,91275.0,0.50776953]
[1764319087176,0.55429398,91276.0,91275.0,0.14696953]
[1764319088476,0.55429398,91276.0,91275.0,0.11484953]
[1764319089484,0.55429398,91276.0,91275.0,0.14264953]
[1764319091273,0.56525078,91276.0,91275.0,0.14264953]
[1764319098291,0.28793078,91276.0,91275.0,0.14264953]
[1764319098584,0.72793078,91276.0,91275.0,0.14264953]
[1764319114401,0.72779086,91276.0,91275.0,0.14264953]
[1764319115697,0.55511086,91276.0,91275.0,0.14264953]
[1764319116003,0.72779086,91276.0,91275.0,0.14264953]
[1764319120099,0.51440406,91276.0,91275.0,0.14264953]
[1764319120300,0.20619406,91276.0,91275.0,0.14264953]
[1764319121108,0.22244406,91276.0,91275.0,0.14264953]
[1764319121407,0.20619406,91276.0,91275.0,0.14264953]
[1764319121602,0.22244406,91276.0,91275.0,0.14264953]
[1764319122511,0.21018,91276.0,91275.0,0.14264953]
[1764319124314,0.005,91276.0,91275.0,0.14264953]
[1764319126014,0.0375,91276.0,91275.0,0.14264953]
[1764319126320,0.4358901,91276.0,91275.0,0.05851953]
[1764319126615,0.4358901,91276.0,91275.0,0.12630953]
[1764319132009,0.4358901,91276.0,91275.0,0.09974953]
[1764319138416,0.4358901,91276.0,91275.0,0.01699953]
[1764319141611,0.4358901,91276.0,91275.0,1e-08]
[1764319141817,0.0190379,91267.0,91266.0,0.00016425]
[1764319142117,0.00808,91251.0,91250.0,0.3608]
[1764319142318,0.6391501,91251.0,91250.0,0.3972]
[1764319142512,0.6391501,91251.0,91250.0,0.3608]
[1764319142718,0.0190403,91247.0,91240.0,0.0238]
[1764319142918,0.0190403,91247.0,91237.0,0.00016434]
[1764319142919,0.00808,91239.0,91237.0,0.00016434]
[1764319143113,0.6491501,91239.0,91238.0,0.43593]
[1764319143329,0.61672,91239.0,91238.0,0.43593]
[1764319143522,0.62076,91239.0,91238.0,0.43593]
[1764319144129,0.62176,91239.0,91238.0,0.43893]
[1764319144724,0.62176,91239.0,91238.0,0.45539911]
[1764319145425,0.62176,91239.0,91238.0,0.45639911]
[1764319150426,0.61772,91239.0,91238.0,0.45639911]
[1764319150630,0.62176,91239.0,91238.0,0.45639911]
[1764319153125,0.6218,91239.0,91238.0,0.45639911]
[1764319153330,0.61776,91239.0,91238.0,0.45639911]
[1764319153530,0.42776,91239.0,91238.0,0.45639911]
[1764319154038,0.42372,91239.0,91238.0,0.45639911]
[1764319154935,0.251,91239.0,91238.0,0.45639911]
[1764319155138,0.42372,91239.0,91238.0,0.45639911]
[1764319156034,0.251,91239.0,91238.0,0.45639911]
[1764319157030,0.2619613,91239.0,91238.0,0.45639911]
[1764319159435,0.2660013,91239.0,91238.0,0.45639911]
[1764319163241,0.4387213,91239.0,91238.0,0.45639911]
[1764319165140,0.46754311,91239.0,91238.0,0.45639911]
[1764319166046,0.45658181,91239.0,91238.0,0.45639911]
[1764319168948,0.45658181,91239.0,91238.0,0.09559911]
[1764319169147,0.45658181,91239.0,91238.0,0.05686911]
[1764319170342,0.45658181,91239.0,91238.0,0.02046911]
[1764319170542,0.45672242,91239.0,91238.0,0.02046911]
[1764319171249,0.45672242,91239.0,91238.0,0.05448911]
[1764319173938,0.45672242,91239.0,91238.0,0.09080911]
[1764319174141,0.02996242,91239.0,91238.0,0.09080911]
[1764319174349,0.02996242,91239.0,91238.0,0.45160911]
[1764319177656,0.02996242,91239.0,91238.0,0.09080911]
[1764319180347,0.39996242,91239.0,91238.0,0.09080911]
[1764319186955,0.41092372,91239.0,91238.0,0.09080911]
[1764319187158,0.39996242,91239.0,91238.0,0.09080911]
[1764319200877,0.41092372,91239.0,91238.0,0.09080911]
[1764319201672,0.39996242,91239.0,91238.0,0.09080911]
[1764319201881,0.010959,91259.0,91255.0,0.06494]
[1764319202380,0.0109579,91268.0,91267.0,0.06494]
[1764319202684,0.0109581,91265.0,91264.0,0.41129]
[1764319202880,0.3809581,91265.0,91264.0,0.38129]
[1764319203078,0.3809581,91265.0,91264.0,0.44623]
[1764319203886,0.3869581,91265.0,91264.0,0.44723]
[1764319204081,0.3879581,91265.0,91264.0,0.44723]
[1764319204982,0.027,91265.0,91264.0,0.44723]
[1764319205578,0.0109579,91267.0,91266.0,0.06494]
[1764319205775,0.4609579,91267.0,91266.0,0.06494]
[1764319206176,0.45,91267.0,91266.0,0.06494]
[1764319206377,0.0109576,91270.0,91269.0,0.06494]
[1764319206685,0.3409576,91270.0,91269.0,0.06494]
[1764319207779,0.0109573,91273.0,91269.0,0.06494]
[1764319207983,0.45,91273.0,91272.0,0.06494]
[1764319208184,0.00016434,91274.0,91273.0,0.06494]
[1764319208479,0.43016434,91274.0,91273.0,0.06494]
[1764319209487,0.43616434,91274.0,91273.0,0.06594]
[1764319212987,0.43616434,91274.0,91273.0,0.001]
[1764319213885,0.46463187,91274.0,91273.0,0.001]
[1764319214085,0.0109572,91273.0,91264.0,0.03813302]
[1764319214291,0.0109581,91265.0,91264.0,0.03813302]
[1764319214492,0.5836381,91265.0,91264.0,0.03813302]
[1764319214793,0.61210563,91265.0,91264.0,0.06813302]
[1764319215176,0.61210563,91265.0,91264.0,0.10307302]
[1764319215497,0.61210563,91265.0,91264.0,0.03913302]
[1764319215684,0.61510563,91265.0,91264.0,0.03913302]
[1764319216077,0.61510563,91265.0,91264.0,0.06913302]
[1764319216583,0.61910563,91265.0,91264.0,0.06913302]
[1764319217980,0.62010563,91265.0,91264.0,0.06913302]
[1764319218888,0.62010563,91265.0,91264.0,0.01764302]
[1764319219091,0.62010563,91265.0,91264.0,0.03259]
[1764319219693,0.62010563,91265.0,91264.0,0.06121]
[1764319221090,0.61910563,91265.0,91264.0,0.06121]
[1764319221399,0.62010563,91265.0,91264.0,0.06121]
[1764319221895,0.61910563,91265.0,91264.0,0.06121]
[1764319222096,0.62010563,91265.0,91264.0,0.06121]
[1764319223891,0.62010563,91265.0,91264.0,0.07869904]
[1764319225999,0.61910563,91265.0,91264.0,0.07869904]
[1764319226200,0.62010563,91265.0,91264.0,0.07869904]
[1764319226991,0.5916381,91265.0,91264.0,0.07869904]
[1764319227193,0.62014985,91265.0,91264.0,0.07869904]
[1764319227394,0.62014985,91265.0,91264.0,0.01948904]
[1764319228202,0.62014985,91265.0,91264.0,0.05007904]
[1764319228698,0.62014985,91265.0,91264.0,0.07869904]
[1764319229700,0.62014985,91265.0,91264.0,0.05007904]
[1764319230096,0.62014985,91265.0,91264.0,0.07869904]
[1764319233611,0.62014985,91265.0,91264.0,0.09630904]
[1764319252622,0.69877623,91265.0,91264.0,0.09630904]
[1764319259424,0.52609623,91265.0,91264.0,0.09630904]
[1764319259623,0.69877623,91265.0,91264.0,0.09630904]
[1764319262525,0.62014985,91265.0,91264.0,0.09630904]
[1764319263026,0.60919175,91265.0,91264.0,0.09630904]
[1764319264313,0.60926821,91265.0,91264.0,0.01948904]
[1764319267426,0.60926821,91265.0,91255.0,0.00016434]
[1764319267628,0.0109605,91245.0,91244.0,0.01799]
[1764319267820,0.010961,91241.0,91240.0,0.01799]
[1764319268021,0.0109615,91237.0,91236.0,0.01799]
[1764319268221,0.60222971,91237.0,91236.0,0.01799]
[1764319268423,0.60222971,91237.0,91236.0,0.04448]
[1764319268631,0.60222971,91237.0,91236.0,0.07375]
[1764319270527,0.60322971,91237.0,91236.0,0.07575]
[1764319270825,0.59226821,91237.0,91236.0,0.07575]
[1764319271022,0.59126821,91237.0,91236.0,0.09161415]
[1764319271223,0.59326821,91237.0,91236.0,0.09261415]
[1764319282539,0.56468,91237.0,91236.0,0.09261415]
[1764319282733,0.5756415,91237.0,91236.0,0.09261415]
[1764319286129,0.6042855,91237.0,91236.0,0.09261415]
[1764319288535,0.6342855,91237.0,91236.0,0.09261415]
[1764319289936,0.4942855,91237.0,91236.0,0.09261415]
[1764319292736,0.4942855,91237.0,91236.0,0.03685415]
[1764319299739,0.4942855,91237.0,91236.0,0.01886415]
[1764319299941,0.0109626,91228.0,91227.0,0.00016434]
[1764319300147,0.5636826,91228.0,91227.0,0.00016434]
[1764319300439,0.5923266,91228.0,91227.0,0.00016434]
[1764319301034,0.5933266,91228.0,91227.0,0.00016434]
[1764319302031,0.6043266,91228.0,91227.0,0.00216434]
[1764319302232,0.6043266,91228.0,91227.0,0.01971627]
[1764319302432,0.5933266,91228.0,91227.0,0.00216434]
[1764319302649,0.6043266,91228.0,91227.0,0.00216434]
[1764319303945,0.6033266,91228.0,91227.0,0.05317434]
[1764319304246,0.6043266,91228.0,91227.0,0.05317434]
[1764319304439,0.6043266,91228.0,91227.0,1e-08]
[1764319304645,0.0109644,91213.0,91212.0,0.01471]
[1764319304843,0.5636844,91213.0,91212.0,0.01471]
[1764319305042,0.5636844,91213.0,91212.0,0.03993]
[1764319305043,0.5923284,91213.0,91212.0,0.03993]
[1764319305347,0.5923284,91213.0,91212.0,0.06572]
[1764319306145,0.5993284,91213.0,91212.0,0.06772]
[1764319306543,0.5993284,91213.0,91212.0,0.08569281]
[1764319319645,0.5706844,91213.0,91212.0,0.08569281]
[1764319319856,0.59922718,91213.0,91212.0,0.08569281]
[1764319321650,0.59922718,91213.0,91212.0,0.01997281]
[1764319321852,0.59922718,91213.0,91212.0,0.05631281]
[1764319322160,0.59922718,91213.0,91212.0,0.08141281]
[1764319322956,0.59922718,91213.0,91212.0,0.05631281]
[1764319323751,0.59922718,91213.0,91212.0,0.03409281]
[1764319323955,0.59922718,91213.0,91212.0,0.01997281]
[1764319324747,0.59922718,91213.0,91203.0,0.00016443]
[1764319324748,0.0109651,91207.0,91203.0,0.00016443]
[1764319324955,0.0109655,91204.0,91203.0,0.00016443]
[1764319325155,1.01306828,91204.0,91203.0,0.00016443]
[1764319325356,0.0109663,91197.0,91196.0,0.01412]
[1764319325556,0.0109668,91193.0,91188.0,0.01412]
[1764319325755,0.41950958,91193.0,91188.0,0.01412]
[1764319326460,0.41950958,91193.0,91192.0,0.06144]
[1764319327364,0.41950958,91193.0,91192.0,0.03634]
[1764319327555,0.41950958,91193.0,91192.0,0.05460216]
[1764319327760,0.41950958,91193.0,91192.0,0.05560216]
[1764319327761,0.42250958,91193.0,91192.0,0.05560216]
[1764319328058,0.42250958,91193.0,91192.0,0.08070216]
[1764319328756,0.42154278,91193.0,91192.0,0.08070216]
[1764319328956,0.56576,91193.0,91192.0,0.08070216]
[1764319330149,0.59434455,91193.0,91192.0,0.08070216]
[1764319330348,0.59434455,91193.0,91192.0,0.03338216]
[1764319331763,0.59434455,91193.0,91192.0,0.001]
[1764319331963,0.59434455,91193.0,91192.0,0.06244]
[1764319333763,0.59434455,91193.0,91192.0,0.001]
[1764319334860,0.59434455,91193.0,91192.0,0.04832]
[1764319335671,0.49434455,91193.0,91192.0,0.04832]
[1764319338857,0.32158455,91193.0,91192.0,0.04832]
[1764319339059,0.49438455,91193.0,91192.0,0.04832]
[1764319339461,0.49438455,91193.0,91192.0,0.40912]
[1764319339462,0.4658,91193.0,91192.0,0.40912]
[1764319340264,0.293,91193.0,91192.0,0.40912]
[1764319340574,0.4658,91193.0,91192.0,0.40912]
[1764319340760,0.1758,91193.0,91192.0,0.40912]
[1764319340960,0.5858,91193.0,91192.0,0.40912]
[1764319341468,0.2158,91193.0,91192.0,0.40912]
[1764319342261,0.4658,91193.0,91192.0,0.40912]
[1764319342463,0.49447695,91193.0,91192.0,0.40912]
[1764319343272,0.49447695,91193.0,91192.0,0.4200869]
[1764319343461,0.50544375,91193.0,91192.0,0.4200869]
[1764319343773,0.49447695,91193.0,91192.0,0.42181]
[1764319352580,0.4658,91193.0,91192.0,0.42181]
[1764319360276,0.4658,91193.0,91192.0,0.06101]
[1764319360583,0.4658,91193.0,91192.0,0.42181]
[1764319364290,0.2258,91193.0,91192.0,0.42181]
[1764319364785,0.4858,91193.0,91192.0,0.42181]
[1764319365689,0.1758,91193.0,91192.0,0.42181]
[1764319366191,0.5358,91193.0,91192.0,0.42181]
[1764319366989,0.4958,91193.0,91192.0,0.42181]
[1764319367491,0.2458,91193.0,91192.0,0.42181]
[1764319367686,0.073,91193.0,91192.0,0.42181]
[1764319367889,0.00016443,91202.0,91201.0,0.0556858]
[1764319368093,0.00016443,91202.0,91201.0,0.4164858]
[1764319369197,0.42016443,91202.0,91201.0,0.4164858]
[1764319370803,0.42516443,91202.0,91201.0,0.4174858]
[1764319373886,0.43613013,91202.0,91201.0,0.40652]
[1764319374092,0.46496023,91202.0,91201.0,0.42477598]
[1764319375089,0.46496023,91202.0,91201.0,0.01925598]
[1764319375598,0.46496023,91202.0,91201.0,0.001]
[1764319375800,0.0109668,91193.0,91180.0,0.01393]
[1764319375999,0.010967,91191.0,91180.0,0.01393]
[1764319376299,0.4897971,91191.0,91185.0,0.01393]
[1764319376500,0.4897971,91191.0,91190.0,0.01401816]
[1764319377206,0.4897971,91191.0,91190.0,0.01501816]
[1764319377590,0.4897971,91191.0,91190.0,0.01401816]
[1764319377791,0.4917971,91191.0,91190.0,0.03676816]
[1764319378097,0.4917971,91191.0,91190.0,0.05973816]
[1764319378702,0.4917971,91191.0,91190.0,0.07811858]
[1764319379902,0.1608301,91191.0,91190.0,0.07811858]
[1764319380099,0.6235901,91191.0,91190.0,0.07811858]
[1764319389103,0.6235901,91191.0,91190.0,0.01946858]
[1764319391507,0.4508301,91191.0,91190.0,0.01946858]
[1764319391709,0.6236301,91191.0,91190.0,0.01946858]
[1764319392907,0.6236301,91191.0,91190.0,0.07940858]
[1764319393212,0.6236301,91191.0,91190.0,0.05643858]
[1764319395813,0.6236301,91191.0,91190.0,0.07940858]
[1764319399316,0.6345971,91191.0,91190.0,0.07940858]
[1764319400016,0.4617971,91191.0,91190.0,0.07940858]
[1764319400317,0.6345971,91191.0,91190.0,0.07940858]
[1764319400702,0.4136301,91191.0,91190.0,0.07940858]
[1764319401318,0.6536301,91191.0,91190.0,0.07940858]
[1764319401517,0.6436301,91191.0,91190.0,0.07940858]
[1764319401815,0.4036301,91191.0,91190.0,0.07940858]
[1764319402013,0.6136301,91191.0,91190.0,0.07940858]
[1764319407617,0.4408301,91191.0,91190.0,0.07940858]
[1764319407917,0.6136301,91191.0,91190.0,0.07940858]
[1764319418324,0.6146301,91191.0,91190.0,0.08040858]
[1764319440559,0.5858,91191.0,91190.0,0.08040858]
[1764319440759,0.61438094,91191.0,91190.0,0.08040858]
[1764319446056,0.44158094,91191.0,91190.0,0.08040858]
[1764319446256,0.61434094,91191.0,91190.0,0.08040858]
[1764319448461,0.61434094,91191.0,91190.0,0.09137578]
[1764319452968,0.61434094,91191.0,91190.0,0.08040858]
[1764319453168,0.44158094,91191.0,91190.0,0.08040858]
[1764319453368,0.61434094,91191.0,91190.0,0.08040858]
[1764319457360,0.61434094,91191.0,91190.0,0.05743858]
[1764319457964,0.61434094,91191.0,91190.0,0.07975858]
[1764319459375,0.62530794,91191.0,91190.0,0.07975858]
[1764319461974,0.44158094,91191.0,91190.0,0.07975858]
[1764319462175,0.03158094,91191.0,91190.0,0.09072578]
[1764319462374,0.17276,91193.0,91192.0,0.0561769]
[1764319462679,0.57276,91193.0,91192.0,0.0561769]
[1764319463584,0.57576,91193.0,91192.0,0.0561769]
[1764319465673,0.57576,91193.0,91192.0,0.04521]
[1764319465872,0.57576,91193.0,91192.0,0.0561769]
[1764319469286,0.57576,91193.0,91192.0,0.04521]
[1764319474482,0.60419541,91193.0,91192.0,0.04521]
[1764319491793,0.0109669,91192.0,91191.0,0.3608]
[1764319491994,0.46940231,91192.0,91191.0,0.3608]
[1764319493105,0.46940231,91192.0,91191.0,0.3628]
[1764319493397,0.47040231,91192.0,91191.0,0.3628]
[1764319494194,0.45943541,91192.0,91191.0,0.3628]
[1764319497204,0.45943541,91192.0,91191.0,0.38555]
[1764319499504,0.45943541,91192.0,91191.0,0.3628]
[1764319501016,0.45943541,91192.0,91191.0,0.38555]
[1764319501205,0.45943541,91192.0,91191.0,0.40869]
[1764319502798,0.0109679,91184.0,91179.0,0.01316]
[1764319503100,0.0109698,91168.0,91167.0,0.01316]
[1764319503302,0.6137298,91168.0,91167.0,0.02896295]
[1764319503499,0.64216521,91168.0,91167.0,0.01316]
[1764319503902,0.64225705,91168.0,91167.0,0.01316]
[1764319504500,0.63128725,91168.0,91167.0,0.05858]
[1764319504707,0.63428725,91168.0,91167.0,0.05958]
[1764319505307,0.46152725,91168.0,91167.0,0.05958]
[1764319505499,0.63428725,91168.0,91167.0,0.05958]
[1764319506097,0.46152725,91168.0,91167.0,0.05958]
[1764319506401,0.43309184,91168.0,91167.0,0.05958]
[1764319507704,0.43309184,91168.0,91167.0,0.0751241]
[1764319508205,1.84e-06,91168.0,91167.0,0.0751241]
[1764319508402,0.00016453,91177.0,91176.0,0.0563888]
[1764319508709,0.07016453,91177.0,91176.0,0.4171888]
[1764319508906,0.010967,91192.0,91191.0,0.056387]
[1764319509101,0.59220783,91192.0,91191.0,0.056387]
[1764319509299,0.58124083,91192.0,91191.0,0.056387]
[1764319511303,0.56276,91192.0,91191.0,0.057387]
[1764319511511,0.39,91192.0,91191.0,0.057387]
[1764319511708,0.56276,91192.0,91191.0,0.057387]
[1764319512008,0.55676,91192.0,91191.0,0.057387]
[1764319513903,0.384,91192.0,91191.0,0.057387]
[1764319515211,0.084,91192.0,91191.0,0.057387]
[1764319515413,0.00016453,91201.0,91200.0,0.067426]
[1764319515607,0.30016453,91201.0,91200.0,0.428226]
[1764319516911,0.30116453,91201.0,91200.0,0.428226]
[1764319517412,0.00116453,91201.0,91200.0,0.428226]
[1764319517805,0.00516453,91201.0,91200.0,0.429226]
[1764319518811,0.00316453,91201.0,91200.0,0.434226]
[1764319519900,0.00216453,91201.0,91200.0,0.434226]
[1764319520100,0.00016453,91201.0,91200.0,0.428226]
[1764319520310,0.00216453,91201.0,91200.0,0.434226]
[1764319520817,0.00116453,91201.0,91200.0,0.433226]
[1764319522918,0.0109638,91219.0,91218.0,0.04379]
[1764319523103,0.3909638,91219.0,91218.0,0.04379]
[1764319523305,0.41928901,91219.0,91218.0,0.04379]
[1764319524114,0.42028901,91219.0,91218.0,0.04379]
[1764319524310,0.42228901,91219.0,91218.0,0.04479]
[1764319525218,0.41132521,91219.0,91218.0,0.04479]
[1764319525414,0.383,91219.0,91218.0,0.04479]
[1764319531621,0.383,91219.0,91218.0,0.06065806]
[1764319531824,0.003,91219.0,91218.0,0.06065806]
[1764319532015,0.003,91219.0,91218.0,0.42145806]
[1764319540923,0.00016444,91228.0,91227.0,0.0553527]
[1764319541230,0.0109609,91242.0,91241.0,0.04439]
[1764319541431,0.4309609,91242.0,91241.0,0.04439]
[1764319541725,0.45833746,91242.0,91241.0,0.04439]
[1764319543420,0.45933746,91242.0,91241.0,0.04639]
[1764319544430,0.45933746,91242.0,91241.0,0.02465]
[1764319544731,0.45933746,91242.0,91241.0,0.002]
[1764319546323,0.45933746,91242.0,91241.0,0.01750104]
[1764319546528,0.45933746,91242.0,91241.0,0.002]
[1764319549525,0.47029836,91242.0,91241.0,0.002]
[1764319550826,0.47029836,91242.0,91241.0,0.01774583]
[1764319552027,0.010962,91233.0,91232.0,0.00016444]
[1764319552233,0.82009946,91233.0,91232.0,0.00016444]
[1764319553030,0.82109946,91233.0,91232.0,0.00516444]
[1764319553926,0.99481946,91233.0,91232.0,0.00016444]
[1764319554231,0.99781946,91233.0,91232.0,0.00116444]
[1764319555635,0.99981946,91233.0,91232.0,0.00116444]
[1764319556127,0.99381946,91233.0,91232.0,0.00016444]
[1764319556327,0.99881946,91233.0,91232.0,0.00116444]
[1764319556532,0.99781946,91233.0,91232.0,0.00116444]
[1764319556733,0.99881946,91233.0,91232.0,0.00116444]
[1764319557338,0.99781946,91233.0,91232.0,0.00116444]
[1764319557641,0.99881946,91233.0,91232.0,0.00116444]
[1764319558729,0.99881946,91233.0,91232.0,0.01512444]
[1764319559534,0.99881946,91233.0,91232.0,0.05951444]
[1764319559737,0.99881946,91233.0,91232.0,0.03777444]
[1764319560230,0.99881946,91233.0,91232.0,0.01512444]
[1764319563148,0.99881946,91233.0,91232.0,0.03777444]
[1764319563745,0.99881946,91233.0,91232.0,0.05988444]
[1764319564044,0.88881946,91233.0,91232.0,0.05988444]
[1764319566433,0.70513746,91233.0,91232.0,0.05988444]
[1764319566639,0.88881946,91233.0,91232.0,0.05988444]
[1764319570745,0.0109634,91221.0,91216.0,0.01304]
[1764319570936,0.9744834,91221.0,91216.0,0.01304]
[1764319571253,0.0109639,91217.0,91216.0,0.01304]
[1764319571549,0.0109639,91217.0,91208.0,0.01304]
[1764319571550,0.0109649,91209.0,91208.0,0.05695]
[1764319571743,0.58202236,91209.0,91208.0,0.05695]
[1764319573137,0.57405746,91209.0,91208.0,0.05795]
[1764319573542,0.57505746,91209.0,91208.0,0.07276296]
[1764319575145,0.57605746,91209.0,91208.0,0.07276296]
[1764319581256,0.57605746,91209.0,91208.0,0.08372796]
[1764319581655,0.57605746,91209.0,91208.0,0.07276296]
[1764319585462,0.40333746,91209.0,91208.0,0.07276296]
[1764319585763,0.57605746,91209.0,91208.0,0.07276296]
[1764319586168,0.54772,91209.0,91208.0,0.07276296]
[1764319586758,0.375,91209.0,91208.0,0.07276296]
[1764319586958,0.005,91209.0,91208.0,0.07276296]
[1764319587255,0.17272,91215.0,91214.0,0.04332]
[1764319587459,0.00016444,91218.0,91217.0,0.0542839]
[1764319587868,0.0357018,91235.0,91234.0,0.04332]
[1764319588172,0.60593437,91235.0,91234.0,0.04332]
[1764319589766,0.59497257,91235.0,91234.0,0.04332]
[1764319590155,0.59497257,91235.0,91234.0,0.04432]
[1764319590462,0.59597257,91235.0,91234.0,0.04432]
[1764319592877,0.59597257,91235.0,91234.0,0.05950048]
[1764319597465,0.95677257,91235.0,91234.0,0.05950048]
[1764319605983,0.59597257,91235.0,91234.0,0.05950048]
[1764319615387,0.60693427,91235.0,91234.0,0.05950048]
[1764319618882,0.43417427,91235.0,91234.0,0.05950048]
[1764319619084,0.60685427,91235.0,91234.0,0.05950048]
[1764319619790,0.60585427,91235.0,91234.0,0.05850048]
[1764319619992,0.60685427,91235.0,91234.0,0.06050048]
[1764319620378,0.60585427,91235.0,91234.0,0.05850048]
[1764319620579,0.60685427,91235.0,91234.0,0.05950048]
[1764319620782,0.58352257,91235.0,91234.0,0.05950048]
[1764319621192,0.59589257,91235.0,91234.0,0.05950048]
[1764319624298,0.42321257,91235.0,91234.0,0.05950048]
[1764319624498,0.25115257,91235.0,91234.0,0.05950048]
[1764319624693,0.07847257,91235.0,91234.0,0.05950048]
[1764319625701,0.44847257,91235.0,91234.0,0.05950048]
[1764319627505,0.02847257,91235.0,91234.0,0.05950048]
[1764319628404,0.0219375,91235.0,91234.0,0.05950048]
[1764319628592,0.001,91235.0,91234.0,0.05950048]
[1764319635312,0.001,91235.0,91234.0,0.42030048]
[1764319635509,0.00016444,91244.0,91243.0,0.04491]
[1764319635709,0.0109591,91258.0,91245.0,0.05804]
[1764319636105,0.0233291,91258.0,91257.0,0.0558691]
[1764319636407,0.01237,91258.0,91257.0,0.0558691]
[1764319636614,0.44237,91258.0,91257.0,0.0558691]
[1764319636807,0.45474,91258.0,91257.0,0.0558691]
[1764319638212,0.45774,91258.0,91257.0,0.0568691]
[1764319638412,0.45774,91258.0,91257.0,0.04591]
[1764319638813,0.45774,91258.0,91257.0,0.001]